fUSD/lending_fUSD_20250110
["ID","MTS","AMOUNT","RATE_DAILY","PERIOD"]
[348378312,1736484638524,-467.88691468,9.999e-05,2]
[348378313,1736484638534,-500.0,9.999e-05,2]
[348378314,1736484638543,-500.0,9.999e-05,2]
[348378315,1736484638553,-730.54,9.999e-05,2]
[348378316,1736484638562,-500.0,9.999e-05,2]
[348378317,1736484638571,-500.0,9.999e-05,2]
[348378318,1736484638581,-161.54,9.999e-05,2]
[348378319,1736484638590,-500.0,9.999e-05,2]
[348378320,1736484638600,-753.42,9.999e-05,2]
[348378321,1736484638610,-500.0,9.999e-05,2]
[348378322,1736484638621,-879.9,9.999e-05,2]
[348378323,1736484638902,-500.0,9.999e-05,2]
[348378324,1736484638914,-500.0,9.999e-05,2]
[348378325,1736484638925,-500.0,9.999e-05,2]
[348378326,1736484638937,-569.31,9.999e-05,2]
[348378327,1736484638946,-500.0,9.999e-05,2]
[348378328,1736484638957,-510.08,9.999e-05,2]
[348378329,1736484638966,-500.0,9.999e-05,2]
[348378330,1736484638975,-500.0,9.999e-05,2]
[348378331,1736484638986,-500.0,9.999e-05,2]
[348378332,1736484638997,-500.0,9.999e-05,2]
[348378333,1736484639006,-500.0,9.999e-05,2]
[348378334,1736484639015,-746.32,9.999e-05,2]
[348378335,1736484639026,-500.0,9.999e-05,2]
[348378336,1736484639037,-500.0,9.999e-05,2]
[348378337,1736484639046,-235.40787081,9.999e-05,2]
[348378338,1736484639055,-500.0,9.999e-05,2]
[348378339,1736484639066,-500.0,9.999e-05,2]
[348378340,1736484639074,-603.58,9.999e-05,2]
[348378341,1736484639084,-500.0,9.999e-05,2]
[348378342,1736484639092,-500.0,9.999e-05,2]
[348378343,1736484639101,-500.0,9.999e-05,2]
[348378344,1736484639110,-3531.78,9.999e-05,2]
[348378345,1736484639120,-500.0,9.999e-05,2]
[348378346,1736484639129,-623.82,9.999e-05,2]
[348378347,1736484639138,-665.92,9.999e-05,2]
[348378348,1736484639148,-500.0,9.999e-05,2]
[348378349,1736484639157,-1064.58,9.999e-05,2]
[348378350,1736484639166,-527.58316045,9.999e-05,2]
[348378351,1736484639175,-569.23,9.999e-05,2]
[348378352,1736484639185,-500.0,9.999e-05,2]
[348378354,1736484639196,-500.0,9.999e-05,2]
[348378356,1736484639206,-848.41,9.999e-05,2]
[348378358,1736484639218,-896.41,9.999e-05,2]
[348378359,1736484639229,-500.0,9.999e-05,2]
[348378360,1736484639237,-500.0,9.999e-05,2]
[348378361,1736484639246,-500.0,9.999e-05,2]
[348378362,1736484639255,-885.42,9.999e-05,2]
[348378363,1736484639264,-593.2,9.999e-05,2]
[348378364,1736484639273,-500.0,9.999e-05,2]
[348378365,1736484639284,-500.0,9.999e-05,2]
[348378366,1736484639293,-500.0,9.999e-05,2]
[348378367,1736484639302,-500.0,9.999e-05,2]
[348378368,1736484639311,-326.51397642,9.999e-05,2]
[348378369,1736484639320,-781.86,9.999e-05,2]
[348378370,1736484639330,-505.80395521,9.999e-05,2]
[348378371,1736484639339,-500.0,9.999e-05,2]
[348378372,1736484639350,-500.0,9.999e-05,2]
[348378373,1736484639359,-500.0,9.999e-05,2]
[348378374,1736484639369,-500.0,9.999e-05,2]
[348378375,1736484639380,-500.0,9.999e-05,2]
[348378376,1736484639391,-627.1,9.999e-05,2]
[348378377,1736484639402,-500.0,9.999e-05,2]
[348378378,1736484639411,-501.3,9.999e-05,2]
[348378379,1736484639420,-500.0,9.999e-05,2]
[348378380,1736484639430,-500.0,9.999e-05,2]
[348378381,1736484639440,-500.0,9.999e-05,2]
[348378382,1736484639449,-505.63,9.999e-05,2]
[348378383,1736484639459,-500.0,9.999e-05,2]
[348378384,1736484639468,-742.95,9.999e-05,2]
[348378385,1736484639477,-500.0,9.999e-05,2]
[348378386,1736484639487,-500.0,9.999e-05,2]
[348378388,1736484639497,-895.1,9.999e-05,2]
[348378390,1736484639506,-500.0,9.999e-05,2]
[348378391,1736484639515,-500.22,9.999e-05,2]
[348378392,1736484639524,-500.0,9.999e-05,2]
[348378393,1736484639534,-500.0,9.999e-05,2]
[348378394,1736484639543,-604.73,9.999e-05,2]
[348378395,1736484639553,-571.61249942,9.999e-05,2]
[348378396,1736484639562,-500.0,9.999e-05,2]
[348378397,1736484639572,-500.0,9.999e-05,2]
[348378398,1736484639581,-546.1,9.999e-05,2]
[348378399,1736484639591,-849.22,9.999e-05,2]
[348378400,1736484639600,-500.0,9.999e-05,2]
[348378401,1736484639609,-505.85718726,9.999e-05,2]
[348378402,1736484639619,-500.0,9.999e-05,2]
[348378403,1736484639628,-500.0,9.999e-05,2]
[348378404,1736484639641,-500.0,9.999e-05,2]
[348378405,1736484639650,-500.0,9.999e-05,2]
[348378406,1736484639660,-910.0,9.999e-05,2]
[348378407,1736484639670,-511.96773685,9.999e-05,2]
[348378408,1736484639679,-500.0,9.999e-05,2]
[348378409,1736484639689,-500.0,9.999e-05,2]
[348378410,1736484639698,-566.64,9.999e-05,2]
[348378411,1736484639708,-591.36,9.999e-05,2]
[348378412,1736484639717,-500.0,9.999e-05,2]
[348378413,1736484639726,-500.0,9.999e-05,2]
[348378414,1736484639736,-729.95,9.999e-05,2]
[348378415,1736484639746,-721.61,9.999e-05,2]
[348378416,1736484639755,-507.74,9.999e-05,2]
[348378417,1736484639765,-500.0,9.999e-05,2]
[348378418,1736484639774,-3052.95,9.999e-05,2]
[348378419,1736484639783,-853.84,9.999e-05,2]
[348378420,1736484639793,-500.0,9.999e-05,2]
[348378421,1736484639802,-500.0,9.999e-05,2]
[348378422,1736484639812,-500.0,9.999e-05,2]
[348378423,1736484639822,-500.0,9.999e-05,2]
[348378424,1736484639835,-925.22,9.999e-05,2]
[348378425,1736484639844,-500.0,9.999e-05,2]
[348378426,1736484639854,-503.66,9.999e-05,2]
[348378427,1736484639864,-619.12,9.999e-05,2]
[348378428,1736484639874,-500.0,9.999e-05,2]
[348378429,1736484639884,-621.74940206,9.999e-05,2]
[348378430,1736484639895,-500.0,9.999e-05,2]
[348378431,1736484639907,-500.0,9.999e-05,2]
[348378432,1736484639917,-500.0,9.999e-05,2]
[348378433,1736484639926,-858.77,9.999e-05,2]
[348378434,1736484639937,-500.0,9.999e-05,2]
[348378435,1736484639947,-505.47,9.999e-05,2]
[348378436,1736484639956,-859.28,9.999e-05,2]
[348378437,1736484639966,-503.68,9.999e-05,2]
[348378438,1736484639975,-917.01,9.999e-05,2]
[348378439,1736484639985,-673.83,9.999e-05,2]
[348378440,1736484639994,-500.0,9.999e-05,2]
[348378441,1736484640004,-862.97,9.999e-05,2]
[348378442,1736484640013,-709.24,9.999e-05,2]
[348378443,1736484640023,-799.11,9.999e-05,2]
[348378444,1736484640032,-856.6,9.999e-05,2]
[348378445,1736484640042,-895.27,9.999e-05,2]
[348378446,1736484640052,-894.14,9.999e-05,2]
[348378447,1736484640061,-500.0,9.999e-05,2]
[348378448,1736484640071,-500.0,9.999e-05,2]
[348378449,1736484640080,-803.76,9.999e-05,2]
[348378450,1736484640090,-955.82,9.999e-05,2]
[348378451,1736484640099,-500.0,9.999e-05,2]
[348378452,1736484640108,-500.0,9.999e-05,2]
[348378453,1736484640118,-500.0,9.999e-05,2]
[348378454,1736484640127,-917.6,9.999e-05,2]
[348378455,1736484640136,-500.0,9.999e-05,2]
[348378456,1736484640145,-617.7,9.999e-05,2]
[348378457,1736484640155,-501.26982791,9.999e-05,2]
[348378458,1736484640164,-500.0,9.999e-05,2]
[348378459,1736484640174,-500.0,9.999e-05,2]
[348378460,1736484640183,-1008.75,9.999e-05,2]
[348378461,1736484640192,-540.50589713,9.999e-05,2]
[348378462,1736484640202,-500.0,9.999e-05,2]
[348378463,1736484640211,-500.0,9.999e-05,2]
[348378464,1736484640221,-500.0,9.999e-05,2]
[348378465,1736484640230,-2991.26,9.999e-05,2]
[348378466,1736484640239,-500.0,9.999e-05,2]
[348378467,1736484640249,-798.22,9.999e-05,2]
[348378468,1736484640258,-500.0,9.999e-05,2]
[348378469,1736484640267,-3708.43,9.999e-05,2]
[348378470,1736484640276,-623.09,9.999e-05,2]
[348378471,1736484640285,-595.67,9.999e-05,2]
[348378472,1736484640295,-667.24,9.999e-05,2]
[348378473,1736484640304,-500.0,9.999e-05,2]
[348378474,1736484640313,-776.34,9.999e-05,2]
[348378475,1736484640323,-500.0,9.999e-05,2]
[348378476,1736484640332,-3222.27,9.999e-05,2]
[348378477,1736484640341,-623.54,9.999e-05,2]
[348378478,1736484640351,-500.0,9.999e-05,2]
[348378479,1736484640360,-939.48,9.999e-05,2]
[348378480,1736484640369,-792.78,9.999e-05,2]
[348378481,1736484640378,-500.0,9.999e-05,2]
[348378482,1736484640387,-627.44,9.999e-05,2]
[348378483,1736484640396,-933.26,9.999e-05,2]
[348378484,1736484640406,-2679.96,9.999e-05,2]
[348378485,1736484640415,-622.28,9.999e-05,2]
[348378486,1736484640425,-508.05,9.999e-05,2]
[348378487,1736484640435,-1277.26,9.999e-05,2]
[348378488,1736484640444,-978.67,9.999e-05,2]
[348378489,1736484640454,-500.0,9.999e-05,2]
[348378490,1736484640463,-701.98,9.999e-05,2]
[348378491,1736484640472,-500.0,9.999e-05,2]
[348378492,1736484640481,-611.88,9.999e-05,2]
[348378493,1736484640491,-500.0,9.999e-05,2]
[348378494,1736484640500,-555.82,9.999e-05,2]
[348378495,1736484640509,-781.27,9.999e-05,2]
[348378496,1736484640519,-500.0,9.999e-05,2]
[348378497,1736484640528,-500.0,9.999e-05,2]
[348378498,1736484640537,-473.40722183,9.999e-05,2]
[348378499,1736484640547,-842.36,9.999e-05,2]
[348378500,1736484640556,-3104.03,9.999e-05,2]
[348378501,1736484640565,-500.0,9.999e-05,2]
[348378502,1736484640574,-863.96,9.999e-05,2]
[348378503,1736484640584,-541.63,9.999e-05,2]
[348378504,1736484640594,-707.6,9.999e-05,2]
[348378505,1736484640603,-1386.01,9.999e-05,2]
[348378506,1736484640612,-518.91,9.999e-05,2]
[348378507,1736484640622,-1000.07,9.999e-05,2]
[348378508,1736484640631,-519.85,9.999e-05,2]
[348378509,1736484640640,-500.0,9.999e-05,2]
[348378510,1736484640649,-919.65,9.999e-05,2]
[348378511,1736484640658,-500.0,9.999e-05,2]
[348378512,1736484640667,-981.49,9.999e-05,2]
[348378513,1736484640677,-1350.63,9.999e-05,2]
[348378514,1736484640686,-500.0,9.999e-05,2]
[348378515,1736484640695,-796.79,9.999e-05,2]
[348378516,1736484640705,-624.5,9.999e-05,2]
[348378517,1736484640715,-500.0,9.999e-05,2]
[348378518,1736484640724,-743.81,9.999e-05,2]
[348378519,1736484640733,-780.68,9.999e-05,2]
[348378520,1736484640742,-958.65,9.999e-05,2]
[348378521,1736484640751,-500.0,9.999e-05,2]
[348378522,1736484640761,-500.0,9.999e-05,2]
[348378523,1736484640770,-1486.98,9.999e-05,2]
[348378524,1736484640779,-651.74,9.999e-05,2]
[348378525,1736484640789,-591.61,9.999e-05,2]
[348378526,1736484640799,-500.0,9.999e-05,2]
[348378527,1736484640809,-900.55,9.999e-05,2]
[348378528,1736484640819,-2409.4,9.999e-05,2]
[348378529,1736484640832,-628.72,9.999e-05,2]
[348378530,1736484640842,-608.64,9.999e-05,2]
[348378531,1736484640851,-500.0,9.999e-05,2]
[348378532,1736484640860,-523.68883317,9.999e-05,2]
[348378533,1736484640869,-500.0,9.999e-05,2]
[348378534,1736484640879,-1160.66,9.999e-05,2]
[348378535,1736484640888,-501.27,9.999e-05,2]
[348378536,1736484640898,-500.0,9.999e-05,2]
[348378537,1736484640907,-1487.99,9.999e-05,2]
[348378538,1736484640916,-500.0,9.999e-05,2]
[348378539,1736484640926,-2665915.36825454,0.0001,2]
[348378540,1736484640935,-1673.97983634,0.0001,2]
[348378541,1736484640944,-1000.0,0.0001,2]
[348378542,1736484640953,-2000.0,0.0001,2]
[348378543,1736484640963,-200.0,0.0001,2]
[348378544,1736484640972,-1000.0,0.0001,2]
[348378545,1736484640984,-2000.0,0.0001,2]
[348378546,1736484640994,-200.0,0.0001,2]
[348378547,1736484641003,-211.56,0.0001,2]
[348378548,1736484641012,-1281.50398958,0.0001,2]
[348378549,1736484641022,-3000.0,0.0001,2]
[348378550,1736484641031,-160.78282822,0.0001,2]
[348378551,1736484641040,-99114.58296432,0.0001,2]
[348378552,1736484641050,-858.26262061,0.0001,2]
[348378553,1736484641059,-211631.0,0.0001,2]
[348378554,1736484641068,-658.73132646,0.0001,2]
[348378555,1736484641078,-200.0,0.0001,2]
[348378556,1736484641087,-250.0,0.0001,2]
[348378557,1736484641097,-250.0,0.0001,2]
[348378558,1736484641106,-250.0,0.0001,2]
[348378559,1736484641115,-250.0,0.0001,2]
[348378560,1736484641124,-250.0,0.0001,2]
[348378561,1736484641134,-250.0,0.0001,2]
[348378562,1736484641143,-250.0,0.0001,2]
[348378563,1736484641152,-250.0,0.0001,2]
[348378564,1736484641161,-250.0,0.0001,2]
[348378565,1736484641170,-250.0,0.0001,2]
[348378566,1736484641179,-250.0,0.0001,2]
[348378567,1736484641188,-250.0,0.0001,2]
[348378568,1736484641198,-250.0,0.0001,2]
[348378569,1736484641207,-252.2,0.0001,2]
[348378570,1736484641216,-156.177,0.0001002,2]
[348378571,1736484641225,-150.0,0.00010044,2]
[348378572,1736484641235,-200.0,0.000101,2]
[348378573,1736484641244,-150.0,0.00010124,2]
[348378574,1736484641253,-500.0,0.00010136,2]
[348378575,1736484641262,-688.93,0.00010137,2]
[348378576,1736484641271,-429.77780017,0.0001015,2]
[348378577,1736484641280,-1000.0,0.00010167,2]
[348378578,1736484641290,-1315.0,0.00010173,2]
[348378579,1736484641299,-500.0,0.00010186,2]
[348378580,1736484641308,-500.0,0.00010186,2]
[348378581,1736484641317,-16566.71035204,0.00010245,4]
[348378582,1736484641326,-150.0,0.00010249,2]
[348378583,1736484641335,-3162.174,0.00010262,2]
[348378584,1736484641345,-150.287,0.00010263,2]
[348378585,1736484641354,-500.0,0.0001027,2]
[348378586,1736484641363,-1077.98,0.0001027,2]
[348378587,1736484641373,-686.33,0.0001027,2]
[348378588,1736484641382,-1030.35,0.0001027,2]
[348378589,1736484641392,-500.0,0.0001027,2]
[348378590,1736484641402,-1124.15,0.0001027,2]
[348378591,1736484641411,-500.0,0.0001027,2]
[348378592,1736484641421,-673.34,0.0001027,2]
[348378593,1736484641430,-911.31,0.0001027,2]
[348378594,1736484641439,-500.0,0.0001027,2]
[348378595,1736484641449,-500.0,0.0001027,2]
[348378596,1736484641458,-1097.71,0.0001027,2]
[348378597,1736484641468,-1005.89,0.0001027,2]
[348378598,1736484641477,-1489.65,0.0001027,2]
[348378599,1736484641487,-1435.87,0.0001027,2]
[348378600,1736484641496,-2598.19,0.0001027,2]
[348378601,1736484641505,-2225.15,0.0001027,2]
[348378602,1736484641515,-1537.44,0.0001027,2]
[348378603,1736484641524,-1949.6,0.0001027,2]
[348378604,1736484641533,-1321.81,0.0001027,2]
[348378605,1736484641543,-500.0,0.0001027,2]
[348378606,1736484641552,-1122.93,0.0001027,2]
[348378607,1736484641562,-4386.32,0.0001027,2]
[348378608,1736484641571,-2838.14,0.0001027,2]
[348378609,1736484641582,-1900.58,0.0001027,2]
[348378610,1736484641592,-1040.71,0.0001027,2]
[348378611,1736484641601,-1847.27,0.00010272,2]
[348378612,1736484641611,-1463.33,0.00010272,2]
[348378613,1736484641621,-2541.99,0.00010272,2]
[348378614,1736484641631,-6594.75,0.00010272,2]
[348378615,1736484641641,-1202.73,0.00010272,2]
[348378616,1736484641650,-820.82,0.00010272,2]
[348378617,1736484641659,-917.52,0.00010272,2]
[348378618,1736484641669,-500.0,0.00010272,2]
[348378619,1736484641678,-500.0,0.00010272,2]
[348378620,1736484641688,-500.0,0.00010272,2]
[348378621,1736484641697,-500.0,0.00010272,2]
[348378622,1736484641707,-2732.32,0.00010272,2]
[348378623,1736484641716,-500.0,0.00010272,2]
[348378624,1736484641725,-500.0,0.00010272,2]
[348378625,1736484641734,-500.0,0.00010272,2]
[348378626,1736484641743,-500.0,0.00010272,2]
[348378627,1736484641753,-971.93,0.00010272,2]
[348378628,1736484641762,-7281.9,0.00010272,2]
[348378629,1736484641771,-384.94981871,0.00010272,2]
[348378630,1736484641781,-500.0,0.00010272,2]
[348378631,1736484641791,-949.35,0.00010272,2]
[348378632,1736484641800,-500.0,0.00010272,2]
[348378633,1736484641810,-1174.06,0.00010272,2]
[348378634,1736484641820,-1405.33,0.00010272,2]
[348378635,1736484641832,-1182.82,0.00010272,2]
[348378636,1736484641842,-500.0,0.00010272,2]
[348378637,1736484641851,-557.02,0.00010272,2]
[348378638,1736484641861,-2064.45,0.00010272,2]
[348378639,1736484641871,-500.0,0.00010272,2]
[348378640,1736484641880,-500.0,0.00010272,2]
[348378641,1736484641889,-500.0,0.00010272,2]
[348378642,1736484641899,-508.17240353,0.00010272,2]
[348378643,1736484641911,-1114.74,0.00010272,2]
[348378644,1736484641922,-2513.93,0.00010272,2]
[348378645,1736484641933,-500.0,0.00010272,2]
[348378646,1736484641942,-2963.82,0.00010272,2]
[348378647,1736484641953,-956.22,0.00010272,2]
[348378648,1736484641962,-1202.73,0.00010272,2]
[348378649,1736484641971,-599.37,0.00010272,2]
[348378650,1736484641981,-1420.91,0.00010272,2]
[348378651,1736484641991,-1000.16,0.00010272,2]
[348378652,1736484642000,-929.72,0.00010272,2]
[348378653,1736484642010,-1875.9,0.00010272,2]
[348378654,1736484642024,-1415.99,0.00010272,2]
[348378655,1736484642034,-2470.01,0.00010272,2]
[348378656,1736484642043,-500.0,0.00010272,2]
[348378657,1736484642053,-500.0,0.00010272,2]
[348378658,1736484642063,-1418.09,0.00010272,2]
[348378659,1736484642073,-500.0,0.00010272,2]
[348378660,1736484642085,-1578.25,0.00010272,2]
[348378661,1736484642096,-500.0,0.00010272,2]
[348378662,1736484642105,-190.49970156,0.00010272,2]
[348378663,1736484642116,-587.63,0.00010272,2]
[348378664,1736484642126,-922.35,0.00010272,2]
[348378665,1736484642136,-500.0,0.00010272,2]
[348378666,1736484642145,-500.0,0.00010272,2]
[348378667,1736484642156,-385.21506558,0.00010272,2]
[348378668,1736484642166,-1794.7,0.00010272,2]
[348378669,1736484642175,-500.0,0.00010272,2]
[348378670,1736484642185,-569.82,0.00010272,2]
[348378671,1736484642195,-851.22,0.00010272,2]
[348378672,1736484642204,-500.0,0.00010272,2]
[348378673,1736484642213,-938.63,0.00010272,2]
[348378674,1736484642222,-1060.72,0.00010272,2]
[348378675,1736484642231,-500.0,0.00010272,2]
[348378676,1736484642241,-336.9659934,0.00010272,2]
[348378677,1736484642250,-2742.27,0.00010272,2]
[348378678,1736484642260,-1060.82,0.00010272,2]
[348378679,1736484642269,-238.42324372,0.00010272,2]
[348378680,1736484642282,-937.95,0.00010272,2]
[348378681,1736484642292,-572.49,0.00010272,2]
[348378682,1736484642301,-797.18,0.00010272,2]
[348378683,1736484642310,-2691.05,0.00010272,2]
[348378685,1736484642322,-1946.08,0.00010272,2]
[348378687,1736484642331,-500.0,0.00010272,2]
[348378689,1736484642340,-500.0,0.00010272,2]
[348378691,1736484642349,-481.684011,0.00010273,2]
[348378692,1736484642358,-488.181607,0.00010273,2]
[348378693,1736484642368,-500.0,0.00010273,2]
[348378694,1736484642378,-468.87453072,0.00010273,2]
[348378695,1736484642387,-1127.3,0.00010273,2]
[348378696,1736484642397,-725.69,0.00010273,2]
[348378697,1736484642407,-500.0,0.00010273,2]
[348378698,1736484642416,-500.0,0.00010273,2]
[348378699,1736484642426,-500.0,0.00010273,2]
[348378700,1736484642435,-902.2,0.00010273,2]
[348378701,1736484642444,-500.0,0.00010273,2]
[348378702,1736484642453,-500.0,0.00010273,2]
[348378705,1736484642463,-500.0,0.00010273,2]
[348378707,1736484642472,-1020.12,0.00010273,2]
[348378709,1736484642482,-500.0,0.00010273,2]
[348378710,1736484642491,-1367.82,0.00010273,2]
[348378711,1736484642500,-1680.36,0.00010273,2]
[348378713,1736484642509,-500.0,0.00010273,2]
[348378714,1736484642519,-500.0,0.00010273,2]
[348378715,1736484642528,-694.19,0.00010273,2]
[348378716,1736484642537,-741.28,0.00010273,2]
[348378717,1736484642547,-500.0,0.00010273,2]
[348378718,1736484642557,-500.0,0.00010273,2]
[348378719,1736484642566,-501.15,0.00010273,2]
[348378720,1736484642575,-500.0,0.00010273,2]
[348378721,1736484642586,-1138.17,0.00010273,2]
[348378722,1736484642596,-500.0,0.00010273,2]
[348378723,1736484642605,-500.0,0.00010273,2]
[348378724,1736484642614,-500.0,0.00010273,2]
[348378725,1736484642624,-1077.38,0.00010273,2]
[348378726,1736484642634,-500.0,0.00010273,2]
[348378727,1736484642643,-500.0,0.00010273,2]
[348378728,1736484642653,-1442.45,0.00010273,2]
[348378729,1736484642662,-500.0,0.00010273,2]
[348378730,1736484642671,-635.38,0.00010273,2]
[348378731,1736484642680,-500.0,0.00010273,2]
[348378732,1736484642690,-2483.48,0.00010273,2]
[348378733,1736484642699,-619.26473656,0.00010273,2]
[348378734,1736484642709,-500.0,0.00010273,2]
[348378735,1736484642718,-1865.01,0.00010273,2]
[348378736,1736484642728,-571.74,0.00010273,2]
[348378737,1736484642737,-500.0,0.00010273,2]
[348378738,1736484642746,-225.41078968,0.00010273,2]
[348378739,1736484642755,-500.0,0.00010273,2]
[348378740,1736484642764,-500.0,0.00010273,2]
[348378741,1736484642774,-500.0,0.00010273,2]
[348378742,1736484642784,-926.28,0.00010273,2]
[348378743,1736484642795,-500.0,0.00010273,2]
[348378744,1736484642804,-1236.44,0.00010273,2]
[348378745,1736484642815,-531.20527384,0.00010273,2]
[348378746,1736484642826,-600.1,0.00010273,2]
[348378747,1736484642836,-500.0,0.00010273,2]
[348378748,1736484642846,-730.54,0.00010273,2]
[348378749,1736484642855,-500.0,0.00010273,2]
[348378750,1736484642864,-500.0,0.00010273,2]
[348378751,1736484642873,-753.42,0.00010273,2]
[348378752,1736484642883,-500.0,0.00010273,2]
[348378753,1736484643104,-879.9,0.00010273,2]
[348378754,1736484643114,-500.0,0.00010273,2]
[348378755,1736484643124,-510.08,0.00010273,2]
[348378756,1736484643133,-500.0,0.00010273,2]
[348378757,1736484643143,-500.0,0.00010273,2]
[348378758,1736484643153,-500.0,0.00010273,2]
[348378759,1736484643162,-746.32,0.00010273,2]
[348378760,1736484643172,-500.0,0.00010273,2]
[348378761,1736484643183,-500.0,0.00010273,2]
[348378762,1736484643192,-500.0,0.00010273,2]
[348378763,1736484643202,-3531.78,0.00010273,2]
[348378764,1736484643212,-500.0,0.00010273,2]
[348378765,1736484643222,-623.82,0.00010273,2]
[348378766,1736484643232,-665.92,0.00010273,2]
[348378767,1736484643242,-500.0,0.00010273,2]
[348378768,1736484643252,-1064.58,0.00010273,2]
[348378769,1736484643261,-569.23,0.00010273,2]
[348378770,1736484643271,-500.0,0.00010273,2]
[348378771,1736484643281,-848.41,0.00010273,2]
[348378772,1736484643290,-896.41,0.00010273,2]
[348378773,1736484643300,-500.0,0.00010273,2]
[348378774,1736484643310,-500.0,0.00010273,2]
[348378775,1736484643320,-885.42,0.00010273,2]
[348378776,1736484643329,-593.2,0.00010273,2]
[348378777,1736484643339,-500.0,0.00010273,2]
[348378778,1736484643348,-500.0,0.00010273,2]
[348378779,1736484643358,-500.0,0.00010273,2]
[348378780,1736484643367,-250.28044485,0.00010273,2]
[348378781,1736484643378,-781.86,0.00010273,2]
[348378782,1736484643387,-500.0,0.00010273,2]
[348378783,1736484643397,-500.0,0.00010273,2]
[348378784,1736484643407,-500.0,0.00010273,2]
[348378785,1736484643417,-362.8059795,0.00010273,2]
[348378786,1736484643426,-500.0,0.00010273,2]
[348378787,1736484643436,-627.1,0.00010273,2]
[348378788,1736484643445,-500.0,0.00010273,2]
[348378789,1736484643455,-501.3,0.00010273,2]
[348378790,1736484643464,-500.0,0.00010273,2]
[348378791,1736484643474,-510.20735336,0.00010273,2]
[348378792,1736484643483,-500.0,0.00010273,2]
[348378793,1736484643493,-505.63,0.00010273,2]
[348378794,1736484643503,-500.0,0.00010273,2]
[348378795,1736484643512,-742.95,0.00010273,2]
[348378796,1736484643521,-500.0,0.00010273,2]
[348378797,1736484643531,-500.0,0.00010273,2]
[348378798,1736484643540,-895.1,0.00010273,2]
[348378799,1736484643550,-500.0,0.00010273,2]
[348378800,1736484643560,-500.22,0.00010273,2]
[348378801,1736484643570,-476.20532984,0.00010273,2]
[348378802,1736484643581,-500.0,0.00010273,2]
[348378803,1736484643590,-604.73,0.00010273,2]
[348378804,1736484643599,-500.0,0.00010273,2]
[348378805,1736484643609,-500.0,0.00010273,2]
[348378806,1736484643618,-546.1,0.00010273,2]
[348378807,1736484643627,-849.22,0.00010273,2]
[348378808,1736484643637,-500.0,0.00010273,2]
[348378809,1736484643646,-500.0,0.00010273,2]
[348378810,1736484643655,-500.0,0.00010273,2]
[348378811,1736484643665,-500.0,0.00010273,2]
[348378812,1736484643674,-910.0,0.00010273,2]
[348378813,1736484643683,-500.0,0.00010273,2]
[348378814,1736484643694,-500.0,0.00010273,2]
[348378815,1736484643704,-566.64,0.00010273,2]
[348378816,1736484643714,-591.36,0.00010273,2]
[348378817,1736484643723,-500.0,0.00010273,2]
[348378818,1736484643731,-500.0,0.00010273,2]
[348378819,1736484643740,-729.95,0.00010273,2]
[348378820,1736484643750,-721.61,0.00010273,2]
[348378821,1736484643759,-507.74,0.00010273,2]
[348378822,1736484643768,-500.0,0.00010273,2]
[348378823,1736484643778,-3052.95,0.00010273,2]
[348378824,1736484643787,-853.84,0.00010273,2]
[348378825,1736484643797,-500.0,0.00010273,2]